bitfinex/quotes_ETHUSD_20241130
["timestamp","ask_amount","ask_price","bid_price","bid_amount"]
[1732971904435,2.7188,3678.1,3677.5,2.71917]
[1732971904773,0.755672,3678.0,3677.5,2.71917]
[1732971905247,0.755672,3678.0,3677.6,2.71915]
[1732971905662,0.755672,3678.0,3677.4,2.81928]
[1732971906160,1.5692,3677.8,3677.4,0.1]
[1732971906391,1.5692,3677.8,3677.5,2.7192]
[1732971907330,1.5692,3677.8,3677.7,2.71909]
[1732971907521,1.5692,3678.3,3677.8,2.71899]
[1732971907754,1.5692,3678.3,3677.4,2.81929]
[1732971907959,2.71885,3678.1,3677.4,2.81926]
[1732971908264,2.71875,3678.2,3677.4,2.81926]
[1732971908963,2.71885,3678.1,3677.4,2.81926]
[1732971909129,0.9631106,3678.0,3677.4,2.81926]
[1732971910067,0.9631106,3678.0,3677.6,2.71912]
[1732971910370,0.9631106,3678.0,3677.7,2.71908]
[1732971910575,1.5692,3678.3,3677.7,2.71908]
[1732971911753,0.55,3678.2,3677.4,2.8193]
[1732971912269,2.71879,3678.1,3677.4,2.8193]
[1732971912436,0.483799,3678.0,3677.7,2.71908]
[1732971913322,0.483799,3678.0,3677.5,2.71921]
[1732971913727,0.483799,3678.0,3677.6,2.71914]
[1732971914124,3.26873,3678.2,3677.6,2.71914]
[1732971914549,3.26873,3678.2,3677.7,0.2716]
[1732971914754,3.26873,3678.2,3677.4,0.1]
[1732971914755,2.71885,3678.1,3677.4,2.81926]
[1732971915226,0.55,3678.0,3677.2,0.1]
[1732971915425,4.2486,3677.7,3677.1,2.71952]
[1732971915728,0.6322996,3677.6,3676.9,0.1]
[1732971915928,3.3514796,3677.6,3676.9,2.81962]
[1732971916434,0.6322996,3677.6,3676.9,2.81962]
[1732971916664,4.24879,3677.5,3677.0,0.1]
[1732971916973,1.5295,3677.5,3677.0,0.1]
[1732971917172,0.48809796,3677.4,3677.0,0.1]
[1732971917871,1.5295,3677.5,3677.0,0.1]
[1732971918571,2.71933,3677.4,3677.0,0.1]
[1732971919477,1.5295,3677.5,3676.8,2.71974]
[1732971919839,4.24876,3677.5,3676.8,2.71974]
[1732971920161,2.71934,3677.4,3676.8,2.71974]
[1732971920364,0.96747956,3677.3,3676.7,0.1]
[1732971920569,1.5295,3677.2,3676.7,0.1]
[1732971920882,4.24901,3677.2,3676.7,0.1]
[1732971921451,2.71955,3677.1,3676.7,0.1]
[1732971922463,2.71961,3677.0,3676.7,0.1]
[1732971922716,0.424911,3676.9,3676.7,0.1]
[1732971923000,1.5295,3676.7,3675.9,4.41491]
[1732971923480,1.5295,3676.7,3676.2,0.1]
[1732971923781,2.71991,3676.6,3675.9,2.82039]
[1732971924765,3.60389596,3676.7,3675.9,2.82039]
[1732971924968,6.32376596,3676.7,3675.9,0.1]
[1732971925152,2.71998,3676.5,3675.7,0.10613239]
[1732971925369,2.72014,3676.3,3675.7,0.00613239]
[1732971925572,1.5295,3676.4,3675.7,0.00613239]
[1732971925985,2.7202,3676.2,3675.7,0.00613239]
[1732971926191,2.7203,3676.1,3675.7,0.00613239]
[1732971926504,0.4794696,3676.0,3675.7,0.00613239]
[1732971926703,1.5295,3675.9,3675.7,0.00613239]
[1732971926879,4.24993,3675.9,3675.7,0.00613239]
[1732971927462,2.72049,3675.8,3675.7,0.00613239]
[1732971931269,3.27049,3675.8,3675.7,0.00613239]
[1732971931470,4.27791056,3675.8,3675.7,0.00613239]
[1732971931674,5.91351056,3675.8,3675.7,0.00613239]
[1732971931870,6.16688949,3675.8,3675.7,0.00613239]
[1732971932915,1.6356,3674.8,3674.3,1.6684]
[1732971933127,4.35683,3674.8,3674.3,0.1]
[1732971933362,0.435683,3674.7,3674.4,0.07248883]
[1732971933540,0.435683,3674.7,3674.4,0.17248883]
[1732971934115,2.07439596,3674.6,3674.4,0.07248883]
[1732971934314,2.72145,3674.5,3674.4,0.07248883]
[1732971934517,2.72145,3674.5,3674.0,0.1]
[1732971934744,2.72145,3674.5,3673.7,1.5684]
[1732971934745,0.5231529,3674.4,3673.7,1.5684]
[1732971934960,2.72168,3674.2,3674.1,0.07047706]
[1732971935114,2.72168,3674.2,3673.7,1.5684]
[1732971935315,0.55,3674.3,3673.7,1.5684]
[1732971935615,2.7219,3673.9,3673.8,0.07057646]
[1732971935837,2.7219,3673.9,3673.2,0.35]
[1732971935838,5.70291256,3673.9,3673.3,0.1]
[1732971936048,2.98099256,3673.9,3673.4,0.07097911]
[1732971936236,2.0979,3673.8,3673.2,0.25]
[1732971936445,2.0979,3673.8,3673.3,0.07067821]
[1732971936664,2.07439596,3673.5,3673.2,0.25]
[1732971936847,2.72227,3673.4,3673.2,0.25]
[1732971937182,2.07439596,3673.5,3673.2,0.25]
[1732971937339,2.72234,3673.3,3673.2,0.25]
[1732971937793,4.27024,3673.3,3673.2,0.25]
[1732971938071,4.82024,3673.3,3673.2,0.25]
[1732971939044,2.0979,3673.3,3673.2,0.25]
[1732971939882,4.82024,3673.3,3673.2,0.25]
[1732971940175,3.08031956,3673.3,3673.2,0.25]
[1732971940584,0.98241956,3673.3,3673.2,0.32206457]
[1732971940747,0.2074396,3673.4,3673.2,0.32206457]
[1732971940948,0.2074396,3673.4,3673.2,0.25]
[1732971941350,0.2074396,3673.4,3673.3,0.07196867]
[1732971942676,0.2074396,3673.4,3673.2,0.25]
[1732971942976,0.55,3673.3,3673.2,0.25]
[1732971943140,5.10342356,3673.3,3673.2,0.25]
[1732971947259,0.83318356,3673.3,3673.2,0.25]
[1732971947904,0.28318356,3673.3,3673.2,0.25]
[1732971948123,0.55603216,3673.6,3673.5,2.72219]
[1732971948299,8.84,3673.8,3673.5,2.72219]
[1732971948803,8.84,3673.8,3673.2,0.25]
[1732971949007,8.84,3673.8,3673.7,2.72205]
[1732971949213,1.05609327,3674.4,3674.0,2.72182]
[1732971949367,1.5112,3674.7,3673.9,0.1]
[1732971949368,2.07439596,3674.7,3674.3,2.7216]
[1732971950413,2.07439596,3674.7,3674.2,1.654]
[1732971950791,2.07439596,3674.7,3674.2,4.37566]
[1732971951017,2.07439596,3674.7,3673.9,2.72189]
[1732971951190,3.63309596,3674.3,3673.6,2.72207]
[1732971951385,3.63309596,3674.3,3673.2,1.9784]
[1732971951386,2.07439596,3673.9,3673.2,1.9784]
[1732971951587,2.07439596,3673.9,3673.2,4.6008]
[1732971951795,2.07439596,3673.9,3673.2,2.9724]
[1732971951796,4.79631596,3673.9,3673.2,2.9724]
[1732971951991,4.79631596,3673.9,3673.2,0.25]
[1732971952173,2.07439596,3673.9,3673.2,0.25]
[1732971952376,1.5587,3673.7,3673.2,0.25]
[1732971952675,2.07439596,3673.5,3673.2,0.25]
[1732971953691,2.72231,3673.4,3673.2,0.25]
[1732971954203,2.72231,3673.4,3673.3,0.07228091]
[1732971955218,2.07439596,3673.5,3673.3,0.07228091]
[1732971955374,0.3633096,3673.4,3673.3,0.07228091]
[1732971955820,0.3633096,3673.4,3673.2,0.25]
[1732971955991,2.72234,3673.3,3673.2,0.25]
[1732971956187,0.3633096,3673.4,3672.0,0.1]
[1732971956392,2.07439596,3672.3,3671.9,0.1]
[1732971957516,2.07439596,3672.7,3672.1,2.72318]
[1732971958024,2.07439596,3672.7,3671.9,2.82337]
[1732971958223,2.72286,3672.6,3672.0,2.7233]
[1732971958597,2.07439596,3672.7,3672.0,2.7233]
[1732971958793,0.3733296,3672.6,3672.1,2.72319]
[1732971959911,0.3733296,3672.6,3672.2,2.72313]
[1732971960579,0.3733296,3672.6,3672.2,2.82313]
[1732971960780,0.3733296,3672.6,3672.3,2.72302]
[1732971961223,3.73329596,3673.1,3672.3,2.72302]
[1732971961548,2.07439596,3673.1,3672.6,0.1]
[1732971961739,2.07439596,3673.1,3672.8,2.8227]
[1732971962023,0.3633096,3673.4,3672.9,0.17229641]
[1732971962221,0.45121015,3673.3,3673.2,2.72242]
[1732971962395,2.07439596,3673.9,3673.5,2.72214]
[1732971962602,1.6589,3674.2,3673.6,2.79419398]
[1732971962786,0.66053543,3674.1,3673.6,2.79419398]
[1732971962999,0.2540521,3674.0,3673.9,0.1]
[1732971963310,0.2540521,3674.0,3673.9,2.79398044]
[1732971963511,0.54619593,3674.7,3674.1,2.72171]
[1732971963857,1.17038579,3674.6,3674.2,0.07189813]
[1732971964142,0.25413081,3674.5,3674.0,2.72181]
[1732971964439,0.25413081,3674.4,3674.2,2.72165]
[1732971964643,0.25413081,3674.3,3674.2,2.72165]
[1732971965140,0.25415147,3674.3,3674.2,2.72165]
[1732971965444,0.50964568,3674.6,3674.2,2.72165]
[1732971965620,0.7330506,3674.5,3674.2,2.72165]
[1732971965800,0.25413684,3674.4,3674.2,2.72165]
[1732971966021,0.47891376,3674.5,3674.2,2.72165]
[1732971966342,0.47891376,3674.5,3674.3,2.7216]
[1732971967136,0.47891376,3674.5,3674.0,2.82176]
[1732971967437,0.25533097,3674.4,3674.3,2.7216]
[1732971968335,0.25533097,3674.4,3674.1,2.72173]
[1732971968508,0.25533097,3674.4,3674.0,0.1]
[1732971968836,0.25533097,3674.4,3674.0,2.82181]
[1732971969135,0.25533097,3674.4,3674.1,2.79345576]
[1732971969363,0.25533097,3674.4,3674.1,0.07173576]
[1732971969857,0.25533097,3674.4,3674.3,2.7216]
[1732971970019,0.25392075,3674.6,3674.5,2.72145]
[1732971970205,0.2539052,3674.9,3674.5,0.07158588]
[1732971970408,4.24209,3675.4,3674.8,2.72122]
[1732971970409,0.25387074,3675.2,3674.8,2.72122]
[1732971970633,2.07645777,3675.4,3674.9,0.07144093]
[1732971970944,0.72778407,3675.3,3674.9,0.07144093]
[1732971971153,0.72778407,3675.3,3674.9,0.17144093]
[1732971971349,0.72778407,3675.3,3674.9,0.1]
[1732971971706,2.62917259,3675.5,3675.1,2.72097]
[1732971971919,2.62917259,3675.5,3674.9,4.47649]
[1732971972141,2.62917259,3675.5,3675.2,0.07127587]
[1732971972444,5.34989259,3675.5,3675.3,0.07123842]
[1732971972644,5.34989259,3675.5,3675.0,0.1]
[1732971972961,0.69084926,3675.4,3675.1,0.07131332]
[1732971973501,0.69084926,3675.4,3675.1,2.721]
[1732971973702,0.69084926,3675.4,3675.0,0.1]
[1732971973927,0.69084926,3675.4,3675.2,0.07127587]
[1732971974253,0.69084926,3675.4,3675.3,0.07123842]
[1732971974456,0.69084926,3675.4,3675.0,2.82106]
[1732971974631,0.33200219,3675.3,3675.1,0.07131332]
[1732971978158,0.69084926,3675.4,3675.1,2.79230332]
[1732971978366,0.55477663,3675.5,3675.1,4.34980332]
[1732971979022,0.55477663,3675.5,3675.1,1.62881332]
[1732971979217,5.34991259,3675.5,3675.1,0.07131332]
[1732971979425,2.72094,3675.2,3674.7,0.1]
[1732971979625,2.72104,3675.1,3674.8,0.07122965]
[1732971979930,2.140198,3675.0,3674.8,0.07122965]
[1732971980139,0.544198,3675.0,3674.8,0.07122965]
[1732971980318,0.544198,3675.0,3674.6,0.1]
[1732971980319,0.544198,3675.0,3674.7,2.72128]
[1732971980523,2.62917259,3675.5,3675.0,4.27858]
[1732971980762,0.55477663,3675.5,3675.2,0.1]
[1732971981135,0.55477663,3675.5,3675.3,2.79185087]
[1732971981336,4.79482596,3675.9,3675.3,2.79185087]
[1732971981534,2.72058,3675.7,3675.3,0.07099087]
[1732971981792,4.31679,3675.4,3675.3,0.07099087]
[1732971981953,2.72087,3675.3,3675.0,0.1]
[1732971982290,2.07439596,3675.1,3674.3,1.5575]
[1732971982436,1.596,3675.0,3674.2,0.1]
[1732971982637,2.72121,3674.9,3674.2,0.1]
[1732971982860,2.72133,3674.7,3674.2,0.1]
[1732971983287,3.6324946,3674.8,3674.2,0.1]
[1732971983570,0.9112646,3674.8,3674.2,0.1]
[1732971983983,2.7214,3674.6,3674.2,0.1]
[1732971984137,2.7214,3674.6,3674.3,0.07141698]
[1732971984338,0.36326646,3674.5,3674.3,0.07141698]
[1732971984539,4.3176,3674.3,3673.7,0.1]
[1732971984761,1.596,3674.3,3674.2,0.1]
[1732971985078,0.36326646,3674.5,3674.1,0.1]
[1732971985375,3.08473646,3674.5,3674.3,0.1]
[1732971985580,0.67551324,3674.4,3674.3,0.1]
[1732971986088,3.39704324,3674.4,3674.3,0.1]
[1732971987077,0.67551324,3674.4,3674.3,0.1]
[1732971988162,1.22061686,3674.4,3674.3,0.1]
[1732971988765,0.54510362,3674.4,3674.3,0.1]
[1732971989639,2.72126,3674.8,3674.3,0.1]
[1732971989840,0.54602918,3674.5,3674.3,0.1]
[1732971991281,3.26748918,3674.5,3674.3,0.1]
[1732971991489,3.26748918,3674.5,3673.9,0.1]
[1732971991490,0.54602918,3674.5,3673.9,0.1]
[1732971991786,8.84,3675.4,3673.4,2.72226]
[1732971991787,2.72178,3674.1,3673.7,0.1]
[1732971992091,3.59219596,3674.3,3673.9,0.1]
[1732971992092,1.5178,3674.3,3673.9,0.1]
[1732971992246,2.72188,3674.0,3673.9,0.1]
[1732971992441,1.5178,3674.3,3673.2,2.72237]
[1732971992442,3.59219596,3674.3,3673.2,0.1]
[1732971992643,2.72217,3673.6,3673.2,0.1]
[1732971992892,2.72228,3673.4,3673.3,0.072016]
[1732971993081,2.72228,3673.4,3673.2,0.1]
[1732971993248,4.23992,3673.7,3673.2,0.1]
[1732971993249,2.72234,3673.3,3673.2,0.1]
[1732971994367,2.72224,3673.5,3673.2,0.1]
[1732971994570,0.696216,3673.4,3673.2,0.1]
[1732971995085,3.418556,3673.4,3673.2,0.1]
[1732971995378,2.72234,3673.3,3673.2,0.1]
[1732971995781,3.26632806,3673.3,3673.2,0.1]
[1732971995984,0.54398806,3673.3,3673.2,0.1]
[1732971996187,2.72265,3672.9,3672.6,0.1]
[1732971996695,2.72244,3673.2,3672.4,1.5587]
[1732971996696,2.72258,3673.0,3672.9,0.1]
[1732971996990,1.14767306,3673.3,3672.9,0.1]
[1732971997361,2.72249,3673.1,3672.9,0.1]
[1732971998153,0.54398806,3673.3,3672.9,0.1]
[1732971998886,2.72243,3673.2,3672.9,0.1]
[1732971999114,2.72249,3673.1,3673.0,0.07227069]
[1732971999250,2.72249,3673.1,3673.0,0.17227069]
[1732971999456,3.32138081,3673.1,3673.0,0.17227069]
[1732971999763,4.96868081,3673.1,3673.0,0.07227069]
[1732972000188,4.96868081,3673.1,3672.7,0.1]
[1732972000189,2.72266,3672.9,3672.7,0.1]
[1732972000550,2.72266,3672.9,3672.8,0.07220213]
[1732972000894,2.72266,3672.9,3672.7,0.1]
[1732972001057,0.76913408,3672.8,3672.7,0.1]
[1732972001263,2.72245,3673.2,3672.7,0.1]
[1732972001783,2.72263,3673.0,3672.7,0.1]
[1732972001995,2.72255,3673.1,3672.7,0.1]
[1732972002289,2.72281,3672.7,3672.5,0.1]
[1732972002501,0.272281,3672.6,3672.5,0.1]
[1732972003665,2.995141,3672.6,3672.5,0.1]
[1732972003968,2.72295,3672.5,3672.2,0.1]
[1732972005371,0.81331911,3672.6,3672.2,0.1]
[1732972005576,0.81331911,3672.6,3671.7,3.0]
[1732972005577,2.72308,3672.3,3672.0,0.1]
[1732972005925,0.272308,3672.2,3672.0,0.1]
[1732972006212,0.272308,3672.2,3672.1,0.1]
[1732972006515,2.995468,3672.2,3672.1,0.1]
[1732972007016,2.72331,3672.0,3671.8,0.1]
[1732972007315,0.272308,3672.2,3672.1,0.1]
[1732972007616,2.995468,3672.2,3672.1,0.1]
[1732972008115,0.272308,3672.2,3672.1,0.1]
[1732972008521,0.272308,3672.2,3671.6,2.72354]
[1732972008522,0.272308,3672.2,3671.6,0.1]
[1732972008689,4.6052004,3672.1,3672.0,0.1]
[1732972009020,2.72353,3671.8,3671.4,0.0207795]
[1732972009314,1.8819704,3672.1,3672.0,0.1]
[1732972009315,4.6052004,3672.1,3672.0,0.1]
[1732972009689,1.8819704,3672.1,3671.6,0.1]
[1732972009894,2.72353,3671.7,3671.6,0.1]
[1732972010201,2.72362,3671.6,3671.4,0.1207795]
[1732972010411,0.544692,3671.7,3671.6,0.1]
[1732972011123,3.268222,3671.7,3671.6,0.07313677]
[1732972011594,0.544692,3671.7,3671.5,0.1]
[1732972011804,0.55,3672.0,3671.6,0.07313677]
[1732972012000,0.53792434,3671.7,3671.6,0.07313677]
[1732972012328,5.35025434,3671.7,3671.6,0.07313677]
[1732972012529,5.35025434,3671.7,3671.4,0.0207795]
[1732972012530,4.79807596,3671.5,3671.4,0.1207795]
[1732972013434,4.79807596,3671.5,3671.4,0.0207795]
[1732972013591,5.81290899,3671.5,3671.4,0.0207795]
[1732972013793,5.81290899,3671.5,3671.4,0.1207795]
[1732972014533,7.35170899,3671.5,3671.4,0.0207795]
[1732972014735,7.90170899,3671.5,3671.4,0.0207795]
[1732972015239,0.53792434,3671.7,3671.6,2.8236]
[1732972015570,8.84,3673.0,3672.3,0.1]
[1732972015571,2.72302,3672.4,3672.3,0.1]
[1732972016307,2.34667696,3672.6,3671.8,0.1]
[1732972016517,2.72302,3672.4,3672.1,0.1]
[1732972016719,3.25696143,3672.4,3672.1,0.1]
[1732972016942,0.83264984,3672.3,3672.1,0.1]
[1732972017129,0.25346828,3672.5,3672.2,0.06842216]
[1732972018074,2.72303,3672.4,3672.2,0.06842216]
[1732972018620,0.25346828,3672.5,3672.2,0.06842216]
[1732972019036,2.97642828,3672.5,3672.2,0.06842216]
[1732972019447,0.25346828,3672.5,3672.2,0.06842216]
[1732972019644,0.74178187,3672.4,3672.2,0.06842216]
[1732972019959,0.25346828,3672.5,3672.2,0.06842216]
[1732972019960,0.25346828,3672.5,3672.4,5.82301]
[1732972020139,0.25346828,3672.5,3672.4,7.41461]
[1732972020338,0.25346828,3672.5,3672.4,7.48288023]
[1732972025276,2.72235,3673.3,3673.0,0.1]
[1732972025580,2.06449261,3673.2,3673.1,0.06767085]
[1732972025748,6.86130857,3673.2,3673.1,0.06767085]
[1732972025952,6.86130857,3673.2,3672.6,0.1]
[1732972025953,2.72269,3672.9,3672.6,0.1]
[1732972026153,5.05119357,3672.8,3672.4,0.1]
[1732972026449,2.72287,3672.6,3672.5,0.1]
[1732972026778,0.77739636,3672.6,3672.5,0.1]
[1732972026999,7.56944505,3673.2,3672.5,0.1]
[1732972027000,3.12906896,3673.1,3672.5,0.1]
[1732972027168,0.25409044,3673.0,3672.5,0.1]
[1732972027354,0.25409044,3672.9,3672.5,0.1]
[1732972027684,2.72255,3673.1,3672.5,0.1]
[1732972027848,2.97669041,3673.0,3672.5,0.1]
[1732972028051,1.01396165,3672.9,3672.5,0.1]
[1732972028286,0.25411041,3672.9,3672.8,0.1]
[1732972028498,0.272235,3673.2,3673.0,0.1]
[1732972029166,0.272235,3673.2,3673.1,0.06774284]
[1732972029364,3.24874974,3673.2,3673.1,0.06774284]
[1732972029567,3.24874974,3673.2,3673.0,0.1]
[1732972029890,0.61962537,3673.1,3673.0,0.1]
[1732972030276,0.272235,3673.2,3673.0,0.1]
[1732972030489,2.72206,3673.7,3673.4,0.1]
[1732972030653,2.97619231,3673.6,3673.4,0.1]
[1732972030853,2.97619231,3673.6,3672.8,1.5916]
[1732972030854,2.72234,3673.4,3673.2,0.1]
[1732972031079,2.72234,3673.4,3673.3,0.1]
[1732972031291,5.33496098,3673.6,3673.4,0.1]
[1732972031593,1.05975203,3673.5,3673.4,0.1]
[1732972031973,1.05975203,3673.5,3673.3,0.1]
[1732972032188,0.25405093,3673.4,3673.3,0.1]
[1732972032393,0.25403274,3673.4,3673.0,0.1]
[1732972032577,2.7222,3673.5,3673.2,0.1]
[1732972032776,1.05972193,3673.4,3673.2,0.1]
[1732972032980,0.8057061,3673.4,3673.2,0.1]
[1732972033755,3.5280261,3673.4,3673.0,0.1]
[1732972033950,3.5280261,3673.4,3672.8,1.5916]
[1732972033951,4.79688596,3673.2,3672.8,0.1]
[1732972034157,4.79688596,3673.2,3672.2,2.7231]
[1732972034158,1.5947,3673.1,3672.4,0.1]
[1732972034479,2.72264,3672.9,3672.8,0.1]
[1732972034855,0.55578093,3673.0,3672.8,0.1]
[1732972035054,4.31724,3673.1,3672.8,0.1]
[1732972035295,2.97662348,3673.0,3672.8,0.1]
[1732972035502,2.72264,3672.9,3672.8,0.1]
[1732972035666,2.72264,3672.9,3672.2,1.5947]
[1732972035667,0.9114226,3672.9,3672.6,0.1]
[1732972036001,3.6340726,3672.9,3672.8,0.1]
[1732972036368,0.9114226,3672.9,3672.8,0.06778578]
[1732972036556,0.9114226,3672.9,3672.8,0.1]
[1732972036897,0.9114226,3672.9,3672.8,0.16778578]
[1732972038005,3.6340626,3672.9,3672.8,0.16778578]
[1732972038498,3.6340626,3672.9,3672.8,0.06778578]
[1732972038688,2.7228,3672.7,3672.6,0.1]
[1732972038889,3.35848626,3672.7,3672.6,0.1]
[1732972039058,3.35848626,3672.7,3672.6,0.1679767]
[1732972039396,0.63568626,3672.7,3672.6,0.1679767]
[1732972039587,5.4455,3672.8,3672.6,0.0679767]
[1732972039760,2.7228,3672.7,3672.2,1.6947]
[1732972039961,2.72292,3672.6,3672.2,1.6947]
[1732972040272,2.72301,3672.4,3672.2,0.1]
[1732972040473,2.72323,3672.1,3671.8,0.1]
[1732972040671,2.72323,3672.1,3672.0,0.1]
[1732972041761,2.72308,3672.3,3672.0,0.1]
[1732972041974,2.72295,3672.5,3672.0,0.1]
[1732972042309,5.44595,3672.5,3672.0,0.1]
[1732972042605,2.72302,3672.4,3672.0,0.1]
[1732972042811,0.272302,3672.3,3672.0,0.1]
[1732972043712,2.72321,3672.2,3672.0,0.1]
[1732972044010,2.72323,3672.1,3672.0,0.1]
[1732972044514,2.72323,3672.1,3671.4,5.7444895]
[1732972044515,2.72338,3671.9,3671.8,0.1]
[1732972044674,2.72323,3672.1,3672.0,0.1]
[1732972044869,3.0227832,3672.1,3672.0,0.1]
[1732972045569,0.2995532,3672.1,3672.0,1.666]
[1732972045807,2.72301,3672.5,3672.2,0.1]
[1732972045975,0.25441989,3672.4,3672.2,0.1]
[1732972046307,2.72301,3672.5,3672.2,0.1]
[1732972046519,0.25441612,3672.4,3672.2,0.1]
[1732972047171,0.25441612,3672.4,3672.3,2.72308]
[1732972047572,0.25441612,3672.4,3672.3,4.28908]
[1732972047776,0.25441612,3672.4,3672.3,7.28908]
[1732972048372,0.25441612,3672.4,3672.3,0.1]
[1732972048574,2.97742612,3672.4,3672.3,0.1]
[1732972048917,2.72331,3672.0,3671.7,0.1]
[1732972049237,2.72331,3672.0,3671.6,1.566]
[1732972049238,2.72323,3672.1,3672.0,0.1]
[1732972049397,2.72323,3672.1,3671.8,0.1]
[1732972049398,2.72338,3672.0,3671.8,0.1]
[1732972049577,2.72338,3672.0,3671.6,1.566]
[1732972049578,2.72338,3671.9,3671.6,1.666]
[1732972049784,2.72338,3671.9,3671.8,0.1]
[1732972050092,0.544661,3671.9,3671.8,0.1]
[1732972051192,3.268061,3671.9,3671.8,0.1]
[1732972051520,3.268061,3671.9,3671.6,0.1]
[1732972051831,0.55610037,3672.2,3671.4,0.0207795]
[1732972051832,0.55610037,3672.2,3672.0,2.82325]
[1732972051981,0.75959833,3672.4,3672.3,4.48568]
[1732972051982,0.25441612,3672.4,3672.3,4.48568]
[1732972052182,0.25441612,3672.4,3672.3,1.7626]
[1732972054927,0.25441612,3672.4,3672.3,0.1]
[1732972055291,2.72272,3672.8,3672.3,0.1]
[1732972055518,3.267347,3672.7,3672.4,0.1]
[1732972055717,3.267347,3672.7,3672.6,0.1]
[1732972056098,2.61893296,3672.7,3672.0,0.1]
[1732972056297,1.8133195,3672.6,3671.8,0.1]
[1732972056500,2.72326,3672.1,3671.8,0.1]
[1732972057248,4.79749596,3672.3,3671.8,0.1]
[1732972057249,2.07439596,3672.3,3671.8,0.1]
[1732972057445,2.72338,3671.9,3671.8,0.1]
[1732972058893,2.72338,3671.9,3671.8,0.16580104]
[1732972059237,5.08133407,3671.9,3671.8,0.06580104]
[1732972059439,2.72345,3671.8,3671.7,0.1]
[1732972060096,4.826842,3671.9,3671.4,0.0207795]
[1732972060097,2.72368,3671.5,3671.4,0.0207795]
[1732972060543,6.90126796,3671.9,3671.6,0.1]
[1732972060722,0.6901268,3671.8,3671.6,0.1]
[1732972060908,2.72353,3671.7,3671.6,0.1]
[1732972061317,2.72353,3671.7,3671.4,0.0207795]
[1732972061503,2.72353,3671.7,3671.6,0.1]
[1732972061905,3.4136168,3671.8,3671.6,0.1]
[1732972062238,3.33722968,3671.7,3671.6,0.1]
[1732972062602,0.61369968,3671.7,3671.6,0.1]
[1732972062946,2.72333,3672.0,3671.6,0.1]
[1732972063158,2.72324,3672.1,3671.6,0.1]
[1732972063304,2.72334,3672.0,3671.6,0.1]
[1732972063643,2.72338,3671.9,3671.6,0.1]
[1732972063842,3.423922,3671.9,3671.6,0.1]
[1732972064914,2.72348,3671.8,3671.6,0.1]
[1732972065124,0.700542,3671.9,3671.6,0.1]
[1732972065508,2.72284,3672.7,3672.4,0.1]
[1732972065509,2.72299,3672.5,3672.4,0.1]
[1732972065744,3.38461499,3672.5,3672.4,0.1]
[1732972065952,2.97746115,3672.5,3672.2,0.1]
[1732972066155,2.72299,3672.5,3672.4,0.1]
[1732972066327,2.97743788,3672.5,3672.4,0.1]
[1732972066647,3.65256738,3672.5,3672.4,0.1]
[1732972066814,3.90706314,3672.5,3672.4,0.1]
[1732972068539,4.31437685,3672.5,3672.4,0.1]
[1732972068977,3.90706314,3672.5,3672.4,0.1]
[1732972069479,2.72312,3672.3,3672.2,0.1]
[1732972069776,3.64063407,3672.3,3672.2,0.1]
[1732972069933,3.64063407,3672.3,3672.2,0.1661861]
[1732972070267,3.64063407,3672.3,3672.2,0.1]
[1732972070564,3.64059407,3672.3,3672.2,0.1]
[1732972070971,2.72323,3672.1,3671.5,0.1]
[1732972071268,2.72361,3671.6,3671.5,0.1]
[1732972071568,2.90219613,3672.0,3671.5,0.1]
[1732972071569,2.72334,3672.0,3671.5,0.1]
[1732972071759,0.25463947,3671.9,3671.5,0.1]
[1732972071959,2.97811947,3671.8,3671.5,0.1]
[1732972072172,2.72348,3671.8,3671.5,0.1]
[1732972072485,0.272348,3671.7,3671.5,0.1]
[1732972074084,2.995948,3671.7,3671.5,0.1]
[1732972074292,2.7236,3671.6,3671.5,0.1]
[1732972074493,2.72368,3671.5,3671.4,0.0207795]
[1732972078295,3.27368,3671.5,3671.4,0.0207795]
[1732972078589,6.07081462,3671.5,3671.4,0.0207795]
[1732972078796,7.67888601,3671.5,3671.4,0.0207795]
[1732972078952,8.08630421,3671.5,3671.4,0.0207795]
[1732972079293,9.50024759,3671.5,3671.4,0.0207795]
[1732972079493,8.08638791,3671.5,3671.4,0.0207795]
[1732972080577,4.58630244,3671.5,3671.4,0.0207795]
[1732972080777,3.2736,3671.7,3671.4,0.0207795]
[1732972081074,0.55,3671.7,3671.4,0.0207795]
[1732972081310,3.27353,3671.7,3671.4,0.0207795]
[1732972081615,2.72368,3671.5,3671.4,0.0207795]
[1732972081816,3.27353,3671.7,3671.4,0.0207795]
[1732972082025,0.759692,3671.6,3671.4,0.08735581]
[1732972082588,2.72368,3671.5,3671.4,0.0207795]
[1732972083673,3.27368,3671.5,3671.4,0.0207795]
[1732972083911,5.12825211,3671.5,3671.4,0.0207795]
[1732972084479,2.97825211,3671.5,3671.4,0.0207795]
[1732972084723,2.72368,3671.5,3671.4,0.0207795]
[1732972084928,6.04046218,3671.5,3671.4,0.0207795]
[1732972085395,8.80459406,3671.5,3671.4,0.0207795]
[1732972085782,7.39066519,3671.5,3671.4,0.0207795]
[1732972086190,6.44793551,3671.5,3671.4,0.0207795]
[1732972086884,9.9434672,3671.5,3671.4,0.0207795]
[1732972087098,8.80447968,3671.5,3671.4,0.0207795]
[1732972087419,18.7834672,3671.5,3671.4,0.0207795]
[1732972087986,17.64447968,3671.5,3671.4,0.0207795]
[1732972088433,16.23055318,3671.5,3671.4,0.0207795]
[1732972088741,17.64397027,3671.5,3671.4,0.0207795]
[1732972088887,17.64398513,3671.5,3671.4,0.0207795]
[1732972089091,16.04398513,3671.5,3671.4,0.0207795]
[1732972089320,16.70494914,3671.5,3671.4,0.0207795]